fUSD/lending_fUSD_20240828
["ID","MTS","AMOUNT","RATE_DAILY","PERIOD"]
[336502896,1724885018678,-5139.77,0.00038904,120]
[336502897,1724885018714,-1171.15,0.00038904,120]
[336502898,1724885018751,-500.0,0.00038904,120]
[336502899,1724885018789,-524.19401077,0.00038904,120]
[336502900,1724885018833,-1274.5,0.00038904,120]
[336502901,1724885018870,-625.92,0.00038904,120]
[336502902,1724885018915,-500.0,0.00038904,120]
[336502903,1724885018955,-2864.69,0.00038904,120]
[336502904,1724885018993,-2068.13,0.00038904,120]
[336502905,1724885019032,-1127.38,0.00038904,120]
[336502906,1724885019072,-1355.07,0.00038904,120]
[336502907,1724885019111,-647.22997636,0.00038904,120]
[336502908,1724885019148,-500.0,0.00038904,120]
[336502909,1724885019185,-3652.27,0.00038904,120]
[336502910,1724885019226,-1321.13,0.00038904,120]
[336502911,1724885019263,-1147.74,0.00038904,120]
[336502912,1724885019303,-864.13,0.00038904,120]
[336502913,1724885019341,-3723.53,0.00038904,120]
[336502914,1724885019379,-2609.87,0.00038904,120]
[336502915,1724885019419,-500.0,0.00038904,120]
[336502916,1724885019460,-2583.82,0.00038904,120]
[336502917,1724885019498,-500.0,0.00038904,120]
[336502918,1724885019537,-603.42,0.00038904,120]
[336502919,1724885019574,-500.0,0.00038904,120]
[336502920,1724885019614,-1028.3,0.00038904,120]
[336502921,1724885019652,-724.47,0.00038904,120]
[336502922,1724885019690,-500.0,0.00038904,120]
[336502923,1724885019737,-500.0,0.00038904,120]
[336502924,1724885019777,-3115.98,0.00038904,120]
[336502925,1724885019818,-500.0,0.00038904,120]
[336502926,1724885019855,-856.67,0.00038904,120]
[336502927,1724885019894,-150.0,0.00038904,120]
[336502928,1724885019937,-500.89166506,0.00038904,120]
[336502929,1724885019976,-1178.33,0.00038904,120]
[336502930,1724885020016,-500.0,0.00038904,120]
[336502931,1724885020054,-1721.24,0.00038904,120]
[336502932,1724885020094,-814.76,0.00038904,120]
[336502933,1724885020132,-500.0,0.00038904,120]
[336502934,1724885020169,-500.0,0.00038904,120]
[336502935,1724885020205,-2181.83,0.00038904,120]
[336502936,1724885020243,-456.26224439,0.00038904,120]
[336502937,1724885020282,-775.96,0.00038904,120]
[336502938,1724885020321,-1912.04,0.00038904,120]
[336502939,1724885020360,-1368.92,0.00038904,120]
[336502940,1724885020399,-500.0,0.00038904,120]
[336502941,1724885020438,-1614.96,0.00038904,120]
[336502942,1724885020476,-4437.27,0.00038904,120]
[336502943,1724885020514,-500.0,0.00038904,120]
[336502944,1724885020550,-1843.18,0.00038904,120]
[336502945,1724885020806,-1589.17,0.00038904,120]
[336502946,1724885020854,-877.71,0.00038904,120]
[336502947,1724885020891,-531.08245109,0.00038904,120]
[336502948,1724885020928,-771.68,0.00038904,120]
[336502949,1724885020967,-645.05,0.00038904,120]
[336502950,1724885021008,-3827.27,0.00038904,120]
[336502951,1724885021054,-1190.61,0.00038904,120]
[336502952,1724885021094,-940.61,0.00038904,120]
[336502953,1724885021133,-500.0,0.00038904,90]
[336502954,1724885021169,-500.0,0.00038904,120]
[336502955,1724885021208,-500.0,0.00038904,120]
[336502956,1724885021245,-4155.57,0.00038904,120]
[336502957,1724885021281,-918.32,0.00038904,120]
[336502958,1724885021319,-651.48,0.00038904,120]
[336502959,1724885021360,-500.0,0.00038904,120]
[336502960,1724885021399,-3256.33,0.00038904,120]
[336502961,1724885021435,-2052.4,0.00038904,120]
[336502962,1724885021473,-2879.76,0.00038904,120]
[336502963,1724885021513,-5298.75,0.00038904,120]
[336502964,1724885021550,-204.40482104,0.00038904,120]
[336502965,1724885021603,-500.0,0.00038904,120]
[336502966,1724885021651,-500.0,0.00038904,120]
[336502967,1724885021692,-1168.14,0.00038904,120]
[336502968,1724885021740,-500.0,0.00038904,120]
[336502969,1724885021787,-518.87586805,0.00038904,120]
[336502970,1724885021833,-1843.37,0.00038904,120]
[336502971,1724885021875,-523.56,0.00038904,120]
[336502972,1724885021921,-500.0,0.00038904,120]
[336502973,1724885021962,-500.0,0.00038904,120]
[336502974,1724885022002,-500.0,0.00038904,120]
[336502975,1724885022041,-500.0,0.00038904,120]
[336502976,1724885022080,-2419.37,0.00038904,120]
[336502977,1724885022120,-524.66,0.00038904,120]
[336502978,1724885022158,-945.22,0.00038904,120]
[336502979,1724885022196,-500.0,0.00038904,120]
[336502980,1724885022234,-1860.48,0.00038904,120]
[336502981,1724885022270,-2462.72,0.00038904,120]
[336502982,1724885022306,-700.4,0.00038904,120]
[336502983,1724885022344,-500.0,0.00038904,120]
[336502984,1724885022381,-500.0,0.00038904,120]
[336502985,1724885022418,-1211.62,0.00038904,120]
[336502986,1724885022455,-565.93,0.00038904,120]
[336502987,1724885022491,-3392.09,0.00038904,120]
[336502988,1724885022529,-2248.15,0.00038904,120]
[336502989,1724885022568,-2080.06,0.00038904,120]
[336502990,1724885022611,-150.0,0.00038904,120]
[336502991,1724885022649,-500.0,0.00038904,120]
[336502992,1724885022686,-500.0,0.00038904,120]
[336502993,1724885022731,-1895.48,0.00038904,120]
[336502994,1724885022769,-1194.83,0.00038904,120]
[336502995,1724885022809,-1270.94,0.00038904,120]
[336502996,1724885022849,-547.37,0.00038904,120]
[336502997,1724885022889,-2921.42,0.00038904,120]
[336502998,1724885022928,-500.0,0.00038904,120]
[336502999,1724885022968,-1484.18,0.00038904,120]
[336503000,1724885023007,-1000.55,0.00038904,120]
[336503001,1724885023054,-2187.2,0.00038904,120]
[336503002,1724885023094,-500.0,0.00038904,120]
[336503003,1724885023133,-1801.84,0.00038904,120]
[336503004,1724885023172,-634.3467173,0.00038904,120]
[336503005,1724885023209,-657.58,0.00038904,120]
[336503006,1724885023249,-17332.0,0.00038904,120]
[336503007,1724885023285,-1454.75,0.00038904,120]
[336503008,1724885023323,-3322.66,0.00038904,120]
[336503009,1724885023362,-500.0,0.00038904,120]
[336503010,1724885023398,-500.0,0.00038904,120]
[336503011,1724885023437,-500.0,0.00038904,120]
[336503012,1724885023473,-2100.79,0.00038904,120]
[336503013,1724885023511,-500.0,0.00038904,120]
[336503014,1724885023548,-500.0,0.00038904,120]
[336503015,1724885023586,-3286.5,0.00038904,120]
[336503016,1724885023624,-500.0,0.00038904,120]
[336503017,1724885023660,-500.0,0.00038904,120]
[336503018,1724885023697,-500.0,0.00038904,120]
[336503019,1724885023735,-500.0,0.00038904,120]
[336503020,1724885023775,-406.27086175,0.00038904,120]
[336503021,1724885023815,-655.43,0.00038904,120]
[336503022,1724885023856,-2872.95,0.00038904,120]
[336503023,1724885023896,-2302.75,0.00038904,120]
[336503024,1724885023942,-618.26,0.00038904,120]
[336503025,1724885023982,-668.42,0.00038904,120]
[336503026,1724885024021,-500.0,0.00038904,120]
[336503027,1724885024060,-589.65,0.00038904,120]
[336503028,1724885024104,-2099.03,0.00038904,120]
[336503029,1724885024145,-2960.21,0.00038904,120]
[336503030,1724885024185,-4396.79,0.00038904,120]
[336503031,1724885024224,-500.0,0.00038904,120]
[336503032,1724885024268,-593.94,0.00038904,120]
[336503033,1724885024313,-883.0,0.00038904,120]
[336503034,1724885024355,-507.68118342,0.00038904,120]
[336503035,1724885024391,-500.0,0.00038904,120]
[336503036,1724885024429,-1729.26,0.00038904,120]
[336503037,1724885024469,-775.08,0.00038904,120]
[336503038,1724885024507,-1436.8,0.00038904,120]
[336503039,1724885024547,-1369.56,0.00038904,120]
[336503040,1724885024585,-500.0,0.00038904,120]
[336503041,1724885024623,-1595.19,0.00038904,120]
[336503042,1724885024661,-1724.07,0.00038904,120]
[336503043,1724885024698,-500.0,0.00038904,120]
[336503044,1724885024734,-3045.35,0.00038904,120]
[336503045,1724885024772,-1773.01,0.00038904,120]
[336503046,1724885024809,-699.75,0.00038904,120]
[336503047,1724885024856,-500.0,0.00038904,120]
[336503048,1724885024897,-721.43,0.00038904,120]
[336503049,1724885025154,-2134.71,0.00038904,120]
[336503050,1724885025194,-500.0,0.00038904,120]
[336503051,1724885025232,-500.0,0.00038904,120]
[336503052,1724885025271,-895.91,0.00038904,120]
[336503053,1724885025308,-1174.82,0.00038904,120]
[336503054,1724885025348,-659.85,0.00038904,120]
[336503055,1724885025386,-585.47,0.00038904,120]
[336503056,1724885025424,-2224.97,0.00038904,120]
[336503057,1724885025462,-5186.12,0.00038904,120]
[336503058,1724885025500,-657.62,0.00038904,120]
[336503059,1724885025540,-1447.73,0.00038904,120]
[336503060,1724885025579,-2609.9,0.00038904,120]
[336503061,1724885025618,-1198.48,0.00038904,120]
[336503062,1724885025656,-1267.24,0.00038904,120]
[336503063,1724885025692,-979.34,0.00038904,120]
[336503064,1724885025728,-2181.47,0.00038904,120]
[336503065,1724885025765,-500.0,0.00038904,120]
[336503066,1724885025805,-2580.18,0.00038904,120]
[336503067,1724885025844,-500.0,0.00038904,120]
[336503068,1724885025885,-500.0,0.00038904,120]
[336503069,1724885025924,-3517.69,0.00038904,120]
[336503070,1724885025964,-1782.4,0.00038904,120]
[336503071,1724885026001,-798.91,0.00038904,120]
[336503072,1724885026040,-2629.56,0.00038904,120]
[336503073,1724885026081,-500.0,0.00038904,120]
[336503074,1724885026120,-500.0,0.00038904,120]
[336503075,1724885026159,-2119.26,0.00038904,120]
[336503076,1724885026198,-560.94,0.00038904,120]
[336503077,1724885026237,-2185.21,0.00038904,120]
[336503078,1724885026277,-500.0,0.00038904,120]
[336503079,1724885026319,-500.0,0.00038904,120]
[336503080,1724885026357,-1243.83,0.00038904,120]
[336503081,1724885026397,-2887.18,0.00038904,120]
[336503082,1724885026438,-2570.86,0.00038904,120]
[336503083,1724885026478,-500.0,0.00038904,120]
[336503084,1724885026518,-573.58584515,0.00038904,120]
[336503085,1724885026557,-500.0,0.00038904,120]
[336503086,1724885026595,-500.0,0.00038904,120]
[336503087,1724885026635,-1168.64,0.00038904,120]
[336503088,1724885026672,-595.19,0.00038904,120]
[336503089,1724885026710,-509.66,0.00038904,120]
[336503090,1724885026747,-500.0,0.00038904,120]
[336503091,1724885026785,-2251.96,0.00038904,120]
[336503092,1724885026822,-1079.75,0.00038904,120]
[336503093,1724885026861,-987.94,0.00038904,120]
[336503094,1724885026899,-6286.38,0.00038904,120]
[336503095,1724885026937,-500.0,0.00038904,120]
[336503096,1724885026974,-959.62,0.00038904,120]
[336503097,1724885027011,-500.0,0.00038904,120]
[336503098,1724885027049,-2125.79,0.00038904,120]
[336503099,1724885027089,-3373.42,0.00038904,120]
[336503100,1724885027128,-500.0,0.00038904,120]
[336503101,1724885027165,-500.0,0.00038904,120]
[336503102,1724885027203,-626.06,0.00038904,120]
[336503103,1724885027242,-861.0,0.00038904,120]
[336503104,1724885027280,-500.0,0.00038904,120]
[336503105,1724885027317,-1927.55,0.00038904,120]
[336503106,1724885027357,-6914.62,0.00038904,120]
[336503107,1724885027392,-500.0,0.00038904,120]
[336503108,1724885027428,-3347.76,0.00038904,120]
[336503109,1724885027466,-908.93,0.00038904,120]
[336503110,1724885027502,-3048.83,0.00038904,120]
[336503111,1724885027538,-4335.53,0.00038904,120]
[336503112,1724885027574,-733.36,0.00038904,120]
[336503113,1724885027611,-715.9,0.00038904,120]
[336503114,1724885027646,-750.43,0.00038904,120]
[336503115,1724885027685,-500.0,0.00038904,120]
[336503116,1724885027725,-500.0,0.00038904,120]
[336503117,1724885027763,-1047.3,0.00038904,120]
[336503118,1724885027802,-5740.57,0.00038904,120]
[336503119,1724885027841,-1797.01,0.00038904,120]
[336503120,1724885027880,-500.0,0.00038904,120]
[336503121,1724885027922,-2094.86,0.00038904,120]
[336503122,1724885027959,-582.75,0.00038904,120]
[336503123,1724885028000,-1420.67,0.00038904,120]
[336503124,1724885028039,-500.0,0.00038904,120]
[336503126,1724885028078,-670.44,0.00038904,120]
[336503127,1724885028117,-1362.13,0.00038904,120]
[336503128,1724885028155,-1379.04,0.00038904,120]
[336503129,1724885028195,-500.0,0.00038904,120]
[336503130,1724885028232,-500.0,0.00038904,120]
[336503131,1724885028271,-1349.27,0.00038904,120]
[336503132,1724885028317,-252.56795132,0.00038904,120]
[336503133,1724885028375,-1564.42,0.00038904,120]
[336503134,1724885028422,-1334.43,0.00038904,120]
[336503135,1724885028462,-5020.86,0.00038904,120]
[336503136,1724885028500,-822.87,0.00038904,120]
[336503137,1724885028537,-500.0,0.00038904,120]
[336503138,1724885028580,-1022.85,0.00038904,120]
[336503139,1724885028619,-976.33,0.00038904,120]
[336503140,1724885028656,-656.65,0.00038904,120]
[336503141,1724885028694,-500.0,0.00038904,120]
[336503142,1724885028732,-500.0,0.00038904,120]
[336503143,1724885028772,-2066.86,0.00038904,120]
[336503144,1724885028809,-554.33870358,0.00038904,120]
[336503145,1724885028851,-165.28687752,0.00038904,120]
[336503146,1724885028891,-904.47,0.00038904,120]
[336503147,1724885028929,-150.0,0.00038907,120]
[336503148,1724885028968,-150.0,0.0003893,120]
[336503149,1724885029006,-800.0,0.00038986,120]
[336503150,1724885029045,-50000.0,0.00039,120]
[336503151,1724885029084,-500.0,0.00039178,120]
[336503152,1724885029123,-500.0,0.00039178,120]
[336503153,1724885029161,-500.0,0.00039178,120]
[336503154,1724885029411,-510.89328864,0.00039178,120]
[336503155,1724885029449,-500.0,0.00039178,120]
[336503156,1724885029488,-500.0,0.00039178,120]
[336503157,1724885029529,-500.0,0.00039178,120]
[336503158,1724885029568,-500.0,0.00039178,120]
[336503159,1724885029607,-500.0,0.00039178,120]
[336503160,1724885029646,-500.0,0.00039178,120]
[336503161,1724885029683,-500.0,0.00039178,120]
[336503162,1724885029721,-500.0,0.00039178,120]
[336503163,1724885029759,-500.0,0.00039178,120]
[336503164,1724885029799,-500.0,0.00039178,120]
[336503165,1724885029839,-500.0,0.00039178,120]
[336503166,1724885029879,-500.0,0.00039178,120]
[336503167,1724885029922,-500.0,0.00039178,120]
[336503168,1724885029967,-500.0,0.00039178,120]
[336503169,1724885030006,-500.0,0.00039178,120]
[336503170,1724885030040,-500.0,0.00039178,120]
[336503171,1724885030074,-500.0,0.00039178,120]
[336503172,1724885030108,-500.0,0.00039178,120]
[336503173,1724885030141,-500.0,0.00039178,120]
[336503174,1724885030175,-500.0,0.00039178,120]
[336503175,1724885030209,-500.0,0.00039178,120]
[336503176,1724885030245,-500.0,0.00039178,120]
[336503177,1724885030284,-500.0,0.00039178,120]
[336503178,1724885030321,-500.0,0.00039178,120]
[336503179,1724885030357,-500.0,0.00039178,120]
[336503180,1724885030394,-500.0,0.00039178,120]
[336503181,1724885030430,-500.0,0.00039178,120]
[336503182,1724885030469,-500.0,0.00039178,120]
[336503183,1724885030507,-500.0,0.00039178,120]
[336503184,1724885030546,-500.0,0.00039178,120]
[336503185,1724885030584,-500.0,0.00039178,120]
[336503186,1724885030631,-500.0,0.00039178,120]
[336503187,1724885030669,-500.0,0.00039178,120]
[336503188,1724885030706,-500.0,0.00039178,120]
[336503189,1724885030743,-697.73,0.00039178,120]
[336503190,1724885030779,-500.0,0.00039178,120]
[336503191,1724885030821,-500.0,0.00039178,120]
[336503192,1724885030858,-500.0,0.00039178,120]
[336503193,1724885030896,-500.0,0.00039178,120]
[336503194,1724885030935,-500.0,0.00039178,120]
[336503195,1724885030976,-500.0,0.00039178,120]
[336503196,1724885031014,-500.0,0.00039178,120]
[336503197,1724885031054,-500.0,0.00039178,120]
[336503198,1724885031092,-850.13,0.00039178,120]
[336503199,1724885031129,-589.55,0.00039178,120]
[336503200,1724885031168,-500.0,0.00039178,120]
[336503201,1724885031204,-500.0,0.00039178,120]
[336503202,1724885031240,-500.0,0.00039178,120]
[336503203,1724885031275,-509.91,0.00039178,120]
[336503204,1724885031312,-1465.96,0.00039178,120]
[336503205,1724885031348,-500.0,0.00039178,120]
[336503206,1724885031384,-533.93,0.00039178,120]
[336503207,1724885031419,-2694.72,0.00039178,120]
[336503208,1724885031455,-595.08,0.00039178,120]
[336503209,1724885031492,-500.0,0.00039178,120]
[336503210,1724885031528,-500.0,0.00039178,120]
[336503211,1724885031566,-500.0,0.00039178,120]
[336503212,1724885031607,-1838.96,0.00039178,120]
[336503213,1724885031645,-500.0,0.00039178,120]
[336503214,1724885031682,-500.0,0.00039178,120]
[336503215,1724885031719,-500.0,0.00039178,120]
[336503216,1724885031757,-500.0,0.00039178,120]
[336503217,1724885031795,-500.0,0.00039178,120]
[336503218,1724885031833,-252.83910313,0.00039178,120]
[336503219,1724885031872,-500.0,0.00039178,120]
[336503220,1724885031910,-1044.81,0.00039178,120]
[336503221,1724885031952,-500.0,0.00039178,120]
[336503222,1724885031994,-2158.9,0.00039178,120]
[336503223,1724885032032,-500.0,0.00039178,120]
[336503224,1724885032075,-500.0,0.00039178,120]
[336503225,1724885032121,-500.0,0.00039178,120]
[336503226,1724885032159,-550.43,0.00039178,120]
[336503227,1724885032198,-666.55,0.00039178,120]
[336503228,1724885032237,-500.0,0.00039178,120]
[336503229,1724885032277,-500.0,0.00039178,120]
[336503230,1724885032319,-500.0,0.00039178,120]
[336503231,1724885032369,-729.47,0.00039178,120]
[336503232,1724885032416,-500.0,0.00039178,120]
[336503233,1724885032455,-500.0,0.00039178,120]
[336503234,1724885032501,-663.48,0.00039178,120]
[336503235,1724885032538,-558.52,0.00039178,120]
[336503236,1724885032577,-500.0,0.00039178,120]
[336503237,1724885032614,-512.21,0.00039178,120]
[336503238,1724885032653,-3349.64,0.00039178,120]
[336503239,1724885032689,-732.03,0.00039178,120]
[336503240,1724885032727,-1265.92,0.00039178,120]
[336503241,1724885032763,-500.0,0.00039178,120]
[336503242,1724885032802,-549.74995588,0.00039178,120]
[336503243,1724885032840,-500.0,0.00039178,120]
[336503244,1724885032878,-1077.58,0.00039178,120]
[336503245,1724885032918,-541.67,0.00039178,120]
[336503246,1724885032958,-500.0,0.00039178,120]
[336503247,1724885032998,-785.25,0.00039178,120]
[336503248,1724885033036,-500.0,0.00039178,120]
[336503249,1724885033075,-500.0,0.00039178,120]
[336503250,1724885033114,-509.08253883,0.00039178,120]
[336503251,1724885033153,-500.0,0.00039178,120]
[336503252,1724885033190,-500.0,0.00039178,120]
[336503253,1724885033226,-990.08,0.00039178,120]
[336503254,1724885033260,-500.0,0.00039178,120]
[336503255,1724885033295,-500.0,0.00039178,120]
[336503256,1724885033329,-500.0,0.00039178,120]
[336503257,1724885033365,-1338.91725933,0.00039178,120]
[336503258,1724885033617,-526.7828738,0.00039178,120]
[336503259,1724885033657,-523.9,0.00039178,120]
[336503260,1724885033695,-1500.0,0.00039178,120]
[336503261,1724885033733,-816.26,0.00039178,120]
[336503262,1724885033769,-1457.14,0.00039178,120]
[336503263,1724885033807,-1856.99,0.00039178,120]
[336503264,1724885033845,-1051.77,0.00039178,120]
[336503265,1724885033884,-500.0,0.00039178,120]
[336503266,1724885033924,-500.0,0.00039178,120]
[336503267,1724885033963,-500.0,0.00039178,120]
[336503268,1724885034000,-952.58,0.00039178,120]
[336503269,1724885034039,-1626.11,0.00039178,120]
[336503270,1724885034080,-500.0,0.00039178,120]
[336503271,1724885034119,-500.0,0.00039178,120]
[336503272,1724885034157,-1554.93,0.00039178,120]
[336503273,1724885034195,-766.82,0.00039178,120]
[336503274,1724885034233,-500.0,0.00039178,120]
[336503275,1724885034271,-500.0,0.00039178,120]
[336503276,1724885034309,-500.0,0.00039178,120]
[336503277,1724885034349,-1534.0,0.00039178,120]
[336503278,1724885034389,-744.59,0.00039178,120]
[336503279,1724885034427,-1886.64,0.00039178,120]
[336503280,1724885034468,-239.29416715,0.00039178,120]
[336503281,1724885034513,-1133.11,0.00039178,120]
[336503282,1724885034551,-641.39304222,0.00039178,120]
[336503283,1724885034589,-500.0,0.00039178,120]
[336503284,1724885034626,-500.0,0.00039178,120]
[336503285,1724885034664,-500.0,0.00039178,120]
[336503286,1724885034701,-500.0,0.00039178,120]
[336503287,1724885034739,-500.0,0.00039178,120]
[336503288,1724885034779,-500.0,0.00039178,120]
[336503289,1724885034819,-655.22,0.00039178,120]
[336503290,1724885034860,-507.38,0.00039178,120]
[336503291,1724885034901,-1294.17,0.00039178,120]
[336503292,1724885034951,-1911.62,0.00039178,120]
[336503293,1724885034992,-639.89,0.00039178,120]
[336503294,1724885035030,-500.0,0.00039178,120]
[336503295,1724885035067,-500.0,0.00039178,120]
[336503296,1724885035110,-2257.58,0.00039178,120]
[336503297,1724885035147,-500.0,0.00039178,120]
[336503298,1724885035183,-500.0,0.00039178,120]
[336503299,1724885035223,-500.0,0.00039178,120]
[336503300,1724885035258,-1925.3,0.00039178,120]
[336503301,1724885035292,-500.0,0.00039178,120]
[336503302,1724885035325,-500.0,0.00039178,120]
[336503303,1724885035359,-500.0,0.00039178,120]
[336503304,1724885035392,-1162.55,0.00039178,120]
[336503305,1724885035427,-732.63,0.00039178,120]
[336503306,1724885035460,-703.93,0.00039178,120]
[336503307,1724885035494,-229.73543946,0.00039178,120]
[336503308,1724885035526,-500.0,0.00039178,120]
[336503309,1724885035560,-500.0,0.00039178,120]
[336503310,1724885035598,-502.32016068,0.00039178,120]
[336503311,1724885035632,-1621.27,0.00039178,120]
[336503312,1724885035663,-665.7,0.00039178,120]
[336503313,1724885035696,-500.0,0.00039178,120]
[336503314,1724885035729,-1040.14,0.00039178,120]
[336503315,1724885035763,-500.0,0.00039178,120]
[336503316,1724885035796,-500.0,0.00039178,120]
[336503317,1724885035833,-500.0,0.00039178,120]
[336503318,1724885035865,-500.0,0.00039178,120]
[336503319,1724885035900,-1280.06,0.00039178,120]
[336503320,1724885035938,-1132.55,0.00039178,120]
[336503321,1724885035976,-305.95296985,0.00039178,120]
[336503322,1724885036014,-1637.12,0.00039178,120]
[336503323,1724885036049,-500.0,0.00039178,120]
[336503324,1724885036082,-500.0,0.00039178,120]
[336503325,1724885036116,-1891.29,0.00039178,120]
[336503326,1724885036150,-500.0,0.00039178,120]
[336503327,1724885036185,-500.0,0.00039178,120]
[336503328,1724885036219,-500.0,0.00039178,120]
[336503329,1724885036254,-1890.25,0.00039178,120]
[336503330,1724885036288,-500.0,0.00039178,120]
[336503331,1724885036324,-500.0,0.00039178,120]
[336503332,1724885036360,-500.0,0.00039178,120]
[336503333,1724885036392,-500.0,0.00039178,120]
[336503334,1724885036427,-500.0,0.00039178,120]
[336503335,1724885036462,-3518.22,0.00039178,120]
[336503336,1724885036498,-1436.48,0.00039178,120]
[336503337,1724885036533,-1232.49,0.00039178,120]
[336503338,1724885036569,-500.0,0.00039178,120]
[336503339,1724885036607,-1971.42,0.00039178,120]
[336503340,1724885036643,-500.0,0.00039178,120]
[336503341,1724885036680,-3418.0,0.00039178,120]
[336503342,1724885036717,-830.32,0.00039178,120]
[336503343,1724885036753,-500.0,0.00039178,120]
[336503344,1724885036790,-1152.38,0.00039178,120]
[336503345,1724885036828,-500.0,0.00039178,120]
[336503346,1724885036864,-500.0,0.00039178,120]
[336503347,1724885036905,-500.0,0.00039178,120]
[336503348,1724885036946,-5252.56,0.00039178,120]
[336503349,1724885036986,-535.14,0.00039178,120]
[336503350,1724885037026,-500.0,0.00039178,120]
[336503351,1724885037062,-1560.58,0.00039178,120]
[336503352,1724885037101,-3538.12,0.00039178,120]
[336503353,1724885037140,-3808.09,0.00039178,120]
[336503354,1724885037176,-513.81353761,0.00039178,120]
[336503355,1724885037211,-4823.74,0.00039178,120]
[336503356,1724885037246,-1202.28,0.00039178,120]
[336503357,1724885037278,-2893.43,0.00039178,120]
[336503358,1724885037312,-500.0,0.00039178,120]
[336503359,1724885037346,-500.0,0.00039178,120]
[336503360,1724885037380,-1131.39,0.00039178,120]
[336503361,1724885037414,-1482.28,0.00039178,120]
[336503362,1724885037448,-500.0,0.00039178,120]
[336503363,1724885037702,-500.0,0.00039178,120]
[336503364,1724885037738,-500.0,0.00039178,120]
[336503365,1724885037772,-500.0,0.00039178,120]
[336503366,1724885037810,-664.91,0.00039178,120]
[336503367,1724885037846,-3596.41,0.00039178,120]
[336503368,1724885037884,-597.55,0.00039178,120]
[336503369,1724885037923,-1236.34,0.00039178,120]
[336503370,1724885037960,-603.95,0.00039178,120]
[336503371,1724885037997,-682.55,0.00039178,120]
[336503372,1724885038033,-684.68,0.00039178,120]
[336503373,1724885038068,-771.76,0.00039178,120]
[336503374,1724885038108,-500.0,0.00039178,120]
[336503375,1724885038145,-1674.34,0.00039178,120]
[336503376,1724885038178,-2752.83,0.00039178,120]
[336503377,1724885038212,-586.87,0.00039178,120]
[336503378,1724885038246,-784.83,0.00039178,120]
[336503379,1724885038279,-1117.6,0.00039178,120]
[336503380,1724885038312,-500.0,0.00039178,120]
[336503381,1724885038351,-500.0,0.00039178,120]
[336503382,1724885038386,-956.56,0.00039178,120]
[336503383,1724885038418,-573.85,0.00039178,120]
[336503384,1724885038453,-500.0,0.00039178,120]
[336503385,1724885038486,-437.27390413,0.00039178,120]
[336503386,1724885038520,-854.66,0.00039178,120]
[336503387,1724885038553,-1734.98,0.00039178,120]
[336503388,1724885038586,-4295.77,0.00039178,120]
[336503389,1724885038627,-668.17,0.00039178,120]
[336503390,1724885038669,-1716.27,0.00039178,120]
[336503391,1724885038702,-1114.77,0.00039178,120]
[336503392,1724885038735,-1826.65,0.00039178,120]
[336503393,1724885038772,-500.0,0.00039178,120]
[336503394,1724885038812,-4644.44,0.00039178,120]
[336503395,1724885038854,-2014.95,0.00039178,120]
[336503396,1724885038891,-500.0,0.00039178,120]